[Event "World Junior U20 Open 2018"]
[Site "Gebze"]
[Date "2018.09.06"]
[Round "2.23"]
[White "Krishna Teja, N."]
[Black "Jarmula, Lukasz"]
[Result "0-1"]
[ECO "E39"]
[WhiteElo "2356"]
[BlackElo "2504"]
[Annotator "ChessBase"]
[PlyCount "50"]
[EventDate "2018.09.05"]
[EventType "swiss"]
[EventCountry "TUR"]
[SourceTitle "playchess.com"]
[Source "ChessBase"]
[SourceQuality "1"]
[TimeControl "40/5400+30:1800+30"]

1. d4 {[%emt 0:00:30]} Nf6 {[%emt 0:00:30]} 2. c4 {[%emt 0:00:00]} e6 {[%emt 0:00:30]} 3. Nc3 {[%emt 0:00:00]} Bb4 {[%emt 0:00:30]} 4. Qc2 {[%emt 0:00:30]} O-O {[%emt 0:00:00]} 5. Nf3 {[%emt 0:00:00]} c5 {[%emt 0:00:00]} 6. dxc5 {[%emt 0:00:00]} Na6 {[%emt 0:00:00]} 7. Bf4 {[%emt 0:05:30]} Nxc5 {[%emt 0:04:00]} 8. a3 {[%emt 0:03:30]} Bxc3+ {[%emt 0:03:30]} 9. Qxc3 {[%emt 0:00:30]} Nce4 {[%emt 0:02:30]} 10. Qd4 {[%emt 0:00:30]} d6 {[%emt 0:05:30]} 11. O-O-O {[%emt 0:10:30]} Qc7 {[%emt 0:10:30]} 12. Bxd6 {[%emt 0:03:30]} Nxd6 {[%emt 0:00:30]} 13. Qxd6 {[%emt 0:00:00]} Qxc4+ {[%emt 0:04:30]} 14. Kb1 {[%emt 0:00:00]} Ne4 {[%emt 0:07:30]} 15. Qe7 {[%emt 0:19:30]} e5 {[%emt 0:24:30]} 16. Nxe5 {[%emt 0:18:30]} Nc3+ {[%emt 0:06:30]} 17. Kc1 {[%emt 0:03:30]} Qb3 {[%emt 0:04:30]} 18. bxc3 {[%emt 0:09:30]} Qxc3+ {[%emt 0:03:40]} 19. Kb1 {[%emt 0:00:30]} Bf5+ {[%emt 0:02:35]} 20. e4 {[%emt 0:00:30]} Qb3+ {[%emt 0:01:37]} 21. Kc1 {[%emt 0:00:30]} Bxe4 {[%emt 0:02:43]} 22. Bd3 {[%emt 0:03:30]} Rac8+ {[%emt 0:02:12]} 23. Kd2 {[%emt 0:00:00]} Bxd3 {[%emt 0:01:29]} 24. Qb4 {[%emt 0:00:00]} Qc2+ {[%emt 0:00:14]} 25. Ke3 {[%emt 0:00:30]} Qe2+ {[%emt 0:00:05]} 0-1

[Event "World Junior U20 Open 2018"]
[Site "Gebze"]
[Date "2018.09.06"]
[Round "2.25"]
[White "Asadli, Vugar"]
[Black "Sawlin, Leonid"]
[Result "1-0"]
[ECO "C11"]
[WhiteElo "2492"]
[BlackElo "2355"]
[Annotator "ChessBase"]
[PlyCount "77"]
[EventDate "2018.09.05"]
[EventType "swiss"]
[EventCountry "TUR"]
[SourceTitle "playchess.com"]
[Source "ChessBase"]
[SourceQuality "1"]
[TimeControl "40/5400+30:1800+30"]

1. e4 {[%emt 0:03:30]} e6 {[%emt 0:01:30]} 2. d4 {[%emt 0:00:30]} d5 {[%emt 0:00:00]} 3. Nc3 {[%emt 0:00:00]} Nf6 {[%emt 0:06:00]} 4. e5 {[%emt 0:01:00]} Nfd7 {[%emt 0:00:30]} 5. f4 {[%emt 0:00:30]} c5 {[%emt 0:00:30]} 6. Nf3 {[%emt 0:00:30]} Nc6 {[%emt 0:00:00]} 7. Be3 {[%emt 0:00:00]} Be7 {[%emt 0:00:00]} 8. Qd2 {[%emt 0:00:00]} b6 {[%emt 0:01:30]} 9. O-O-O {[%emt 0:05:30]} O-O {[%emt 0:01:30]} 10. g4 {[%emt 0:00:30]} a6 {[%emt 0:03:30]} 11. Ne2 {[%emt 0:02:30]} Qc7 {[%emt 0:06:30]} 12. Kb1 {[%emt 0:01:30]} f6 {[%emt 0:13:30]} 13. exf6 {[%emt 0:20:30]} Nxf6 {[%emt 0:00:30]} 14. Rg1 {[%emt 0:00:30]} Ne4 {[%emt 0:03:30]} 15. Qe1 {[%emt 0:00:30]} Bd6 {[%emt 0:00:30]} 16. c3 {[%emt 0:01:30]} a5 {[%emt 0:03:30]} 17. g5 {[%emt 0:04:30]} a4 {[%emt 0:03:30]} 18. a3 {[%emt 0:01:30]} Ba6 {[%emt 0:02:30]} 19. Bh3 {[%emt 0:00:30]} Rae8 {[%emt 0:00:30]} 20. g6 {[%emt 0:00:00]} Bxe2 {[%emt 0:03:30]} 21. gxh7+ {[%emt 0:01:00]} Kh8 {[%emt 0:00:00]} 22. Qxe2 {[%emt 0:00:00]} Bxf4 {[%emt 0:00:00]} 23. Nh4 {[%emt 0:00:00]} Ne7 {[%emt 0:02:30]} 24. Bxe6 {[%emt 0:08:30]} Bxe3 {[%emt 0:07:30]} 25. Qxe3 {[%emt 0:01:30]} Rf6 {[%emt 0:00:30]} 26. Bh3 {[%emt 0:06:30]} Qxh2 {[%emt 0:02:30]} 27. c4 {[%emt 0:11:30]} Qf2 {[%emt 0:06:30]} 28. Ng2 {[%emt 0:02:30]} Qxe3 {[%emt 0:01:30]} 29. Nxe3 {[%emt 0:00:30]} Rf3 {[%emt 0:00:30]} 30. Bd7 {[%emt 0:00:00]} Rd8 {[%emt 0:00:30]} 31. Ng4 {[%emt 0:00:00]} Rxd7 {[%emt 0:03:30]} 32. Ne5 {[%emt 0:00:30]} Rb3 {[%emt 0:00:00]} 33. Rh1 {[%emt 0:01:30]} Nd6 {[%emt 0:06:00]} 34. Nxd7 {[%emt 0:01:30]} Nxc4 {[%emt 0:01:30]} 35. Rde1 {[%emt 0:00:30]} Rxb2+ {[%emt 0:02:03]} 36. Ka1 {[%emt 0:01:30]} Rb3 {[%emt 0:00:10]} 37. Rxe7 {[%emt 0:01:30]} Rxa3+ {[%emt 0:00:17]} 38. Kb1 {[%emt 0:00:00]} Rb3+ {[%emt 0:00:30]} 39. Kc1 {[%emt 0:01:00]} 1-0

[Event "World Junior U20 Open 2018"]
[Site "Gebze"]
[Date "2018.09.06"]
[Round "2.28"]
[White "Zhao, Chenxi"]
[Black "Tang, Andrew"]
[Result "0-1"]
[ECO "C72"]
[WhiteElo "2275"]
[BlackElo "2489"]
[Annotator "ChessBase"]
[PlyCount "44"]
[EventDate "2018.09.05"]
[EventType "swiss"]
[EventCountry "TUR"]
[SourceTitle "playchess.com"]
[Source "ChessBase"]
[SourceQuality "1"]
[TimeControl "40/5400+30:1800+30"]

1. e4 {[%emt 0:00:30]} e5 {[%emt 0:00:30]} 2. Nf3 {[%emt 0:00:30]} Nc6 {[%emt 0:00:30]} 3. Bb5 {[%emt 0:00:00]} a6 {[%emt 0:00:00]} 4. Ba4 {[%emt 0:00:00]} Nf6 {[%emt 0:00:00]} 5. O-O {[%emt 0:00:00]} d6 {[%emt 0:00:30]} 6. c4 {[%emt 0:02:00]} Bd7 {[%emt 0:10:30]} 7. Nc3 {[%emt 0:00:30]} g6 {[%emt 0:16:30]} 8. d3 {[%emt 0:02:30]} Bg7 {[%emt 0:01:30]} 9. Bg5 {[%emt 0:04:30]} h6 {[%emt 0:02:30]} 10. Be3 {[%emt 0:00:00]} O-O {[%emt 0:02:30]} 11. h3 {[%emt 0:00:00]} g5 {[%emt 0:24:30]} 12. d4 {[%emt 0:02:30]} g4 {[%emt 0:03:30]} 13. hxg4 {[%emt 0:00:30]} exd4 {[%emt 0:06:30]} 14. Bxd4 {[%emt 0:03:30]} Bxg4 {[%emt 0:01:30]} 15. Bxc6 {[%emt 0:00:30]} bxc6 {[%emt 0:00:00]} 16. Qd2 {[%emt 0:05:30]} Bxf3 {[%emt 0:03:00]} 17. gxf3 {[%emt 0:00:30]} Nh5 {[%emt 0:04:30]} 18. Bxg7 {[%emt 0:10:30]} Kxg7 {[%emt 0:00:30]} 19. Rfd1 {[%emt 0:00:30]} Qh4 {[%emt 0:03:29]} 20. Qd4+ {[%emt 0:07:30]} Kh7 {[%emt 0:00:04]} 21. Kf1 {[%emt 0:00:30]} Nf4 {[%emt 0:01:37]} 22. Ke1 {[%emt 0:00:30]} c5 {[%emt 0:00:17]} 0-1

[Event "World Junior U20 Open 2018"]
[Site "Gebze"]
[Date "2018.09.06"]
[Round "2.29"]
[White "Gulden, Egemen"]
[Black "Sindarov, Javokhir"]
[Result "0-1"]
[ECO "B26"]
[WhiteElo "2068"]
[BlackElo "2484"]
[Annotator "ChessBase"]
[PlyCount "75"]
[EventDate "2018.09.05"]
[EventType "swiss"]
[EventCountry "TUR"]
[SourceTitle "playchess.com"]
[Source "ChessBase"]
[SourceQuality "1"]
[TimeControl "40/5400+30:1800+30"]

1. e4 {[%emt 0:00:30]} c5 {[%emt 0:00:30]} 2. Nc3 {[%emt 0:00:30]} Nc6 {[%emt 0:00:30]} 3. g3 {[%emt 0:00:30]} g6 {[%emt 0:00:30]} 4. Bg2 {[%emt 0:00:30]} Bg7 {[%emt 0:00:30]} 5. d3 {[%emt 0:00:30]} d6 {[%emt 0:00:30]} 6. Be3 {[%emt 0:00:00]} Nf6 {[%emt 0:02:30]} 7. h3 {[%emt 0:00:00]} O-O {[%emt 0:00:30]} 8. Nge2 {[%emt 0:00:00]} Rb8 {[%emt 0:00:30]} 9. O-O {[%emt 0:02:00]} b5 {[%emt 0:00:30]} 10. Qd2 {[%emt 0:00:30]} b4 {[%emt 0:00:00]} 11. Nd1 {[%emt 0:01:30]} Ba6 {[%emt 0:10:00]} 12. f4 {[%emt 0:04:30]} Nd7 {[%emt 0:03:30]} 13. g4 {[%emt 0:02:30]} Qa5 {[%emt 0:05:30]} 14. Rf2 {[%emt 0:10:30]} Rfc8 {[%emt 0:06:30]} 15. f5 {[%emt 0:04:30]} c4 {[%emt 0:00:30]} 16. fxg6 {[%emt 0:16:30]} fxg6 {[%emt 0:00:30]} 17. Bh6 {[%emt 0:17:30]} cxd3 {[%emt 0:06:30]} 18. cxd3 {[%emt 0:00:30]} Bxh6 {[%emt 0:10:30]} 19. Qxh6 {[%emt 0:00:00]} Nde5 {[%emt 0:00:00]} 20. d4 {[%emt 0:17:06]} Nd3 {[%emt 0:01:00]} 21. Nf4 {[%emt 0:06:32]} Nxf4 {[%emt 0:02:30]} 22. Qxf4 {[%emt 0:00:02]} Rf8 {[%emt 0:00:30]} 23. Qe3 {[%emt 0:00:08]} Qb6 {[%emt 0:01:30]} 24. Rd2 {[%emt 0:03:31]} Rbc8 {[%emt 0:00:30]} 25. e5 {[%emt 0:08:18]} dxe5 {[%emt 0:01:30]} 26. Bd5+ {[%emt 0:00:06]} Kh8 {[%emt 0:00:30]} 27. Bxc6 {[%emt 0:03:00]} Rf1+ {[%emt 0:00:30]} 28. Kh2 {[%emt 0:00:46]} Qxc6 {[%emt 0:00:30]} 29. Qxe5+ {[%emt 0:00:30]} Kg8 {[%emt 0:00:00]} 30. d5 {[%emt 0:00:45]} Qb6 {[%emt 0:00:00]} 31. Kg3 {[%emt 0:00:59]} Rcf8 {[%emt 0:02:30]} 32. d6 {[%emt 0:00:31]} Qg1+ {[%emt 0:02:30]} 33. Kh4 {[%emt 0:00:13]} Re1 {[%emt 0:00:00]} 34. Ne3 {[%emt 0:00:47]} Qxe3 {[%emt 0:02:00]} 35. Rxe1 {[%emt 0:00:43]} Qh6+ {[%emt 0:00:00]} 36. Kg3 {[%emt 0:00:00]} Qxd2 {[%emt 0:00:00]} 37. Qe6+ {[%emt 0:01:05]} Rf7 {[%emt 0:00:30]} 38. Qe4 {[%emt 0:00:28]} 0-1

[Event "World Junior U20 Open 2018"]
[Site "Gebze"]
[Date "2018.09.06"]
[Round "2.30"]
[White "Sargsyan, Shant"]
[Black "Nyambileg, Erdene-Ochir"]
[Result "1-0"]
[ECO "E97"]
[WhiteElo "2477"]
[BlackElo "1798"]
[Annotator "ChessBase"]
[PlyCount "71"]
[EventDate "2018.09.05"]
[EventType "swiss"]
[EventCountry "TUR"]
[SourceTitle "playchess.com"]
[Source "ChessBase"]
[SourceQuality "1"]
[TimeControl "40/5400+30:1800+30"]

1. Nf3 {[%emt 0:04:30]} Nf6 {[%emt 0:00:30]} 2. c4 {[%emt 0:00:30]} g6 {[%emt 0:00:30]} 3. Nc3 {[%emt 0:01:30]} Bg7 {[%emt 0:00:30]} 4. e4 {[%emt 0:00:30]} d6 {[%emt 0:00:30]} 5. d4 {[%emt 0:00:30]} O-O {[%emt 0:00:30]} 6. Be2 {[%emt 0:00:30]} e5 {[%emt 0:05:30]} 7. O-O {[%emt 0:00:30]} Nc6 {[%emt 0:02:30]} 8. Be3 {[%emt 0:00:30]} Ng4 {[%emt 0:01:30]} 9. Bg5 {[%emt 0:00:30]} f6 {[%emt 0:01:30]} 10. Bh4 {[%emt 0:00:30]} g5 {[%emt 0:00:30]} 11. Bg3 {[%emt 0:00:30]} Nh6 {[%emt 0:00:30]} 12. dxe5 {[%emt 0:00:30]} dxe5 {[%emt 0:01:30]} 13. Qb3 {[%emt 0:00:30]} Qe8 {[%emt 0:20:30]} 14. Rad1 {[%emt 0:02:30]} Nd8 {[%emt 0:02:30]} 15. c5+ {[%emt 0:05:30]} Be6 {[%emt 0:05:30]} 16. Qc2 {[%emt 0:06:30]} c6 {[%emt 0:01:30]} 17. Nd2 {[%emt 0:01:30]} Qg6 {[%emt 0:11:30]} 18. Nc4 {[%emt 0:02:30]} Nhf7 {[%emt 0:02:30]} 19. Ne3 {[%emt 0:02:30]} h5 {[%emt 0:02:30]} 20. h3 {[%emt 0:00:30]} Nh6 {[%emt 0:01:30]} 21. Rd6 {[%emt 0:00:30]} Re8 {[%emt 0:01:30]} 22. Qd1 {[%emt 0:08:30]} g4 {[%emt 0:03:30]} 23. hxg4 {[%emt 0:02:30]} hxg4 {[%emt 0:01:30]} 24. Bc4 {[%emt 0:00:30]} Bf8 {[%emt 0:00:30]} 25. Rxd8 {[%emt 0:00:30]} Raxd8 {[%emt 0:03:30]} 26. Bxe6+ {[%emt 0:00:30]} Kh8 {[%emt 0:01:30]} 27. Bd7 {[%emt 0:02:30]} Re7 {[%emt 0:05:30]} 28. Bf5 {[%emt 0:00:30]} Qe8 {[%emt 0:01:30]} 29. Qe2 {[%emt 0:01:30]} Rg7 {[%emt 0:00:30]} 30. Bh4 {[%emt 0:01:30]} Be7 {[%emt 0:01:30]} 31. g3 {[%emt 0:00:30]} Rd4 {[%emt 0:02:18]} 32. Kg2 {[%emt 0:00:30]} Qd8 {[%emt 0:01:49]} 33. Rh1 {[%emt 0:00:30]} Kg8 {[%emt 0:05:41]} 34. Be6+ {[%emt 0:00:30]} Nf7 {[%emt 0:01:22]} 35. Nf5 {[%emt 0:00:30]} Rd2 {[%emt 0:04:05]} 36. Qc4 {[%emt 0:00:30]} 1-0

[Event "World Junior U20 Open 2018"]
[Site "Gebze"]
[Date "2018.09.06"]
[Round "2.37"]
[White "Repka, Christopher"]
[Black "Amartuvshin, Ganzorig"]
[Result "0-1"]
[ECO "E87"]
[WhiteElo "2523"]
[BlackElo "2280"]
[Annotator "ChessBase"]
[PlyCount "75"]
[EventDate "2018.09.05"]
[EventType "swiss"]
[EventCountry "TUR"]
[SourceTitle "playchess.com"]
[Source "ChessBase"]
[SourceQuality "1"]
[TimeControl "40/5400+30:1800+30"]

1. d4 {[%emt 0:01:30]} Nf6 {[%emt 0:00:30]} 2. c4 {[%emt 0:00:30]} g6 {[%emt 0:00:30]} 3. Nc3 {[%emt 0:00:30]} Bg7 {[%emt 0:00:30]} 4. e4 {[%emt 0:00:30]} d6 {[%emt 0:00:30]} 5. h3 {[%emt 0:00:30]} O-O {[%emt 0:00:00]} 6. Be3 {[%emt 0:00:00]} e5 {[%emt 0:00:00]} 7. d5 {[%emt 0:00:00]} a5 {[%emt 0:00:30]} 8. g4 {[%emt 0:00:30]} Na6 {[%emt 0:00:00]} 9. Nge2 {[%emt 0:00:00]} h5 {[%emt 0:05:00]} 10. f3 {[%emt 0:00:00]} Nc5 {[%emt 0:01:30]} 11. Qd2 {[%emt 0:05:30]} Nh7 {[%emt 0:02:30]} 12. Bg2 {[%emt 0:09:30]} f5 {[%emt 0:08:30]} 13. O-O-O {[%emt 0:02:30]} fxg4 {[%emt 0:15:30]} 14. hxg4 {[%emt 0:01:30]} hxg4 {[%emt 0:09:30]} 15. f4 {[%emt 0:05:30]} Bd7 {[%emt 0:07:30]} 16. Rh2 {[%emt 0:12:30]} g3 {[%emt 0:10:30]} 17. Nxg3 {[%emt 0:00:30]} exf4 {[%emt 0:02:30]} 18. Bxf4 {[%emt 0:00:00]} Rxf4 {[%emt 0:00:30]} 19. Qxf4 {[%emt 0:00:00]} Be5 {[%emt 0:00:30]} 20. Qh6 {[%emt 0:02:30]} Qg5+ {[%emt 0:00:30]} 21. Kc2 {[%emt 0:08:30]} Qxh6 {[%emt 0:00:30]} 22. Rxh6 {[%emt 0:00:30]} Kg7 {[%emt 0:00:30]} 23. Rdh1 {[%emt 0:04:30]} Ng5 {[%emt 0:00:30]} 24. Nf1 {[%emt 0:02:30]} Rf8 {[%emt 0:01:30]} 25. Nd1 {[%emt 0:00:00]} a4 {[%emt 0:05:30]} 26. R6h4 {[%emt 0:09:00]} a3 {[%emt 0:00:30]} 27. b3 {[%emt 0:01:30]} b5 {[%emt 0:06:30]} 28. Nd2 {[%emt 0:03:30]} Bg3 {[%emt 0:00:30]} 29. cxb5 {[%emt 0:06:30]} Bxh4 {[%emt 0:00:30]} 30. Rxh4 {[%emt 0:00:30]} Bxb5 {[%emt 0:00:30]} 31. Nc4 {[%emt 0:01:30]} Bxc4 {[%emt 0:03:19]} 32. bxc4 {[%emt 0:00:30]} Nf7 {[%emt 0:00:10]} 33. Rh3 {[%emt 0:01:30]} Ra8 {[%emt 0:01:14]} 34. Nc3 {[%emt 0:06:09]} Ne5 {[%emt 0:00:30]} 35. Nb5 {[%emt 0:00:30]} Rf8 {[%emt 0:00:18]} 36. Rg3 {[%emt 0:06:22]} Rf2+ {[%emt 0:01:31]} 37. Kc3 {[%emt 0:00:07]} Rxa2 {[%emt 0:02:11]} 38. Nxc7 {[%emt 0:00:05]} 0-1

[Event "World Junior U20 Open 2018"]
[Site "Gebze"]
[Date "2018.09.06"]
[Round "2.38"]
[White "Sanal, Vahap"]
[Black "Garidmagnai, Byambasuren"]
[Result "1/2-1/2"]
[ECO "A49"]
[WhiteElo "2502"]
[BlackElo "2287"]
[Annotator "RC"]
[PlyCount "126"]
[EventDate "2018.09.05"]
[EventType "swiss"]
[EventCountry "TUR"]
[SourceTitle "playchess.com"]
[Source "ChessBase"]
[SourceQuality "1"]
[TimeControl "40/5400+30:1800+30"]

1. Nf3 {[%emt 0:00:30]} Nf6 {[%emt 0:00:30]} 2. g3 {[%emt 0:00:00]} g6 {[%emt 0:00:00]} 3. b3 {[%emt 0:01:00]} d6 {[%emt 0:00:00]} 4. d4 {[%emt 0:00:30]} Bg7 {[%emt 0:00:30]} 5. Bb2 {[%emt 0:00:30]} O-O {[%emt 0:00:30]} 6. Bg2 {[%emt 0:00:30]} Nbd7 {[%emt 0:00:30]} 7. O-O {[%emt 0:00:00]} e5 {[%emt 0:00:30]} 8. dxe5 {[%emt 0:00:00]} Ng4 {[%emt 0:00:30]} 9. Qd2 {[%emt 0:00:00]} Ngxe5 {[%emt 0:00:30]} 10. c4 {[%emt 0:00:00]} Nxf3+ {[%emt 0:07:30]} 11. Bxf3 {[%emt 0:00:00]} Bxb2 {[%emt 0:00:30]} 12. Qxb2 {[%emt 0:00:00]} Qf6 {[%emt 0:00:30]} 13. Nc3 {[%emt 0:13:30]} a5 {[%emt 0:04:30]} 14. Qd2 {[%emt 0:01:30]} Nc5 {[%emt 0:02:30]} 15. Nd5 {[%emt 0:00:30]} Qd8 {[%emt 0:00:30]} 16. Qc3 {[%emt 0:07:30]} f5 {[%emt 0:06:30]} 17. h4 {[%emt 0:05:30]} Ne6 {[%emt 0:02:30]} 18. e3 {[%emt 0:01:30]} c6 {[%emt 0:08:30]} 19. Nf4 {[%emt 0:00:30]} Qf6 {[%emt 0:01:30]} 20. Qd2 {[%emt 0:01:30]} Nxf4 {[%emt 0:03:30]} 21. exf4 {[%emt 0:01:30]} Rd8 {[%emt 0:00:00]} 22. Rae1 {[%emt 0:12:30]} Be6 {[%emt 0:05:00]} 23. Qe3 {[%emt 0:00:30]} Bf7 {[%emt 0:00:30]} 24. Qe7 {[%emt 0:01:30]} Qxe7 {[%emt 0:00:30]} 25. Rxe7 {[%emt 0:00:30]} Rab8 {[%emt 0:00:00]} 26. Rd1 {[%emt 0:00:30]} Kg7 {[%emt 0:13:00]} 27. Rc7 {[%emt 0:01:30]} Kf6 {[%emt 0:01:30]} 28. Kf1 {[%emt 0:01:30]} h5 {[%emt 0:02:30]} 29. Rd2 {[%emt 0:02:30]} Be6 {[%emt 0:02:30]} 30. Ke1 {[%emt 0:01:30]} a4 {[%emt 0:01:30]} 31. Kd1 {[%emt 0:01:30]} a3 {[%emt 0:06:30]} 32. Kc2 {[%emt 0:20:30]} b5 {[%emt 0:11:08]} 33. Rxc6 {[%emt 0:07:29]} bxc4 {[%emt 0:00:10]} 34. bxc4 {[%emt 0:00:11]} Rb2+ {[%emt 0:01:39]} 35. Kc3 {[%emt 0:00:06]} Rxd2 {[%emt 0:00:00]} 36. Kxd2 {[%emt 0:00:05]} Rb8 {[%emt 0:00:00]} 37. Kc3 {[%emt 0:04:04]} Rb2 {[%emt 0:03:18]} 38. Rxd6 {[%emt 0:01:44]} Ke7 {[%emt 0:00:03]} 39. Rd3 {[%emt 0:07:43]} Rxa2 {[%emt 0:00:46]} 40. Re3 {[%emt 0:00:00]} Kd7 {[%emt 0:00:00]} 41. Kb4 {[%emt 0:09:08]} Rc2 {[%emt 0:07:56]} 42. Bc6+ {[%emt 0:03:30]} Kd6 {[%emt 0:03:30]} 43. c5+ {[%emt 0:03:30]} Kxc6 {[%emt 0:02:30]} 44. Rxe6+ {[%emt 0:00:30]} Kd5 {[%emt 0:00:00]} 45. Re5+ {[%emt 0:15:18]} Kd4 {[%emt 0:00:00]} 46. Kxa3 {[%emt 0:00:53]} Rxc5 {[%emt 0:01:30]} 47. Re6 {[%emt 0:00:43]} Rc2 {[%emt 0:00:30]} 48. Rxg6 {[%emt 0:01:52]} Rxf2 {[%emt 0:00:30]} 49. Rg5 {[%emt 0:00:00]} Ke4 {[%emt 0:00:30]} 50. Kb3 {[%emt 0:00:00]} Rg2 {[%emt 0:02:30]} 51. Kc3 {[%emt 0:00:38]} Rg1 {[%emt 0:01:30]} 52. Kd2 {[%emt 0:02:12]} Rg2+ {[%emt 0:02:30]} 53. Kc3 {[%emt 0:00:30]} Rg1 {[%emt 0:00:00]} 54. Kc4 {[%emt 0:00:29]} Rc1+ {[%emt 0:00:00]} 55. Kb5 {[%emt 0:00:40]} Kf3 {[%emt 0:00:30]} 56. Kb4 {[%emt 0:00:01]} Rc2 {[%emt 0:00:00]} 57. Kb5 {[%emt 0:01:03]} Rc1 {[%emt 0:00:00]} 58. Kb6 {[%emt 0:00:00]} Rc2 {[%emt 0:00:30]} 59. Rxh5 {[%emt 0:00:21]} Kxg3 {[%emt 0:00:00]} 60. Rxf5 {[%emt 0:00:30]} Kxh4 {[%emt 0:00:00]} 61. Rc5 {[%emt 0:00:30]} Rxc5 {[%emt 0:00:30]} 62. Kxc5 {[%emt 0:00:30]} Kg4 {[%emt 0:00:30]} 63. Kb5 {[%emt 0:00:00]} Kxf4 {[%emt 0:00:00]} 1/2-1/2

[Event "World Junior U20 Open 2018"]
[Site "Gebze"]
[Date "2018.09.06"]
[Round "2.45"]
[White "Haria, Ravi"]
[Black "Can, Melih Kaan"]
[Result "1/2-1/2"]
[ECO "C42"]
[WhiteElo "2442"]
[BlackElo "2195"]
[Annotator "RC"]
[PlyCount "64"]
[EventDate "2018.09.05"]
[EventType "swiss"]
[EventCountry "TUR"]
[SourceTitle "playchess.com"]
[Source "ChessBase"]
[SourceQuality "1"]
[TimeControl "40/5400+30:1800+30"]

1. e4 {[%emt 0:00:30]} e5 {[%emt 0:01:30]} 2. Nf3 {[%emt 0:00:30]} Nf6 {[%emt 0:00:30]} 3. Nxe5 {[%emt 0:00:30]} d6 {[%emt 0:00:30]} 4. Nc4 {[%emt 0:00:30]} Nxe4 {[%emt 0:00:00]} 5. Nc3 {[%emt 0:00:30]} Nxc3 {[%emt 0:12:00]} 6. bxc3 {[%emt 0:00:30]} d5 {[%emt 0:01:30]} 7. Ne3 {[%emt 0:00:30]} c6 {[%emt 0:00:30]} 8. d4 {[%emt 0:03:30]} Bd6 {[%emt 0:02:30]} 9. Bd3 {[%emt 0:01:30]} Qh4 {[%emt 0:09:30]} 10. g3 {[%emt 0:18:30]} Qf6 {[%emt 0:00:30]} 11. O-O {[%emt 0:02:30]} O-O {[%emt 0:15:30]} 12. Re1 {[%emt 0:02:30]} Na6 {[%emt 0:07:30]} 13. Ng4 {[%emt 0:01:30]} Qd8 {[%emt 0:07:30]} 14. Ne5 {[%emt 0:03:30]} Nc7 {[%emt 0:13:30]} 15. Qh5 {[%emt 0:09:30]} g6 {[%emt 0:00:30]} 16. Qf3 {[%emt 0:03:30]} f6 {[%emt 0:04:46]} 17. Ng4 {[%emt 0:01:30]} Bxg4 {[%emt 0:00:30]} 18. Qxg4 {[%emt 0:00:30]} f5 {[%emt 0:00:14]} 19. Qf3 {[%emt 0:05:30]} Qf6 {[%emt 0:02:02]} 20. Bf4 {[%emt 0:07:30]} Rae8 {[%emt 0:01:20]} 21. h4 {[%emt 0:04:30]} Rxe1+ {[%emt 0:06:43]} 22. Rxe1 {[%emt 0:00:00]} Re8 {[%emt 0:01:15]} 23. Rb1 {[%emt 0:10:00]} Bxf4 {[%emt 0:00:59]} 24. Qxf4 {[%emt 0:03:46]} Ne6 {[%emt 0:00:34]} 25. Qf3 {[%emt 0:05:21]} Nd8 {[%emt 0:01:10]} 26. Kg2 {[%emt 0:02:47]} Qd6 {[%emt 0:05:40]} 27. h5 {[%emt 0:00:51]} Kg7 {[%emt 0:00:29]} 28. hxg6 {[%emt 0:04:32]} hxg6 {[%emt 0:00:31]} 29. Rh1 {[%emt 0:05:54]} Nf7 {[%emt 0:02:23]} 30. Qd1 {[%emt 0:00:18]} Qf6 {[%emt 0:01:47]} 31. Qf3 {[%emt 0:00:11]} Qd6 {[%emt 0:00:12]} 32. Qd1 {[%emt 0:00:30]} Qf6 {[%emt 0:00:02]} 1/2-1/2

[Event "World Junior U20 Open 2018"]
[Site "Gebze"]
[Date "2018.09.06"]
[Round "2.49"]
[White "Zrikem, Nassim"]
[Black "Huber, Martin Christian"]
[Result "1-0"]
[ECO "D05"]
[WhiteElo "2066"]
[BlackElo "2390"]
[Annotator "NA"]
[PlyCount "73"]
[EventDate "2018.09.05"]
[EventType "swiss"]
[EventCountry "TUR"]
[SourceTitle "playchess.com"]
[Source "ChessBase"]
[SourceQuality "1"]
[TimeControl "40/5400+30:1800+30"]

1. d4 {[%emt 0:00:30]} Nf6 {[%emt 0:01:30]} 2. Nf3 {[%emt 0:00:30]} e6 {[%emt 0:01:30]} 3. e3 {[%emt 0:00:30]} c5 {[%emt 0:02:30]} 4. c3 {[%emt 0:00:30]} d5 {[%emt 0:07:30]} 5. Bd3 {[%emt 0:00:30]} Nc6 {[%emt 0:00:30]} 6. Nbd2 {[%emt 0:00:30]} Be7 {[%emt 0:03:30]} 7. O-O {[%emt 0:00:30]} O-O {[%emt 0:00:30]} 8. dxc5 {[%emt 0:01:30]} Bxc5 {[%emt 0:00:30]} 9. e4 {[%emt 0:00:30]} Qc7 {[%emt 0:05:30]} 10. Qe2 {[%emt 0:02:30]} h6 {[%emt 0:03:30]} 11. h3 {[%emt 0:07:30]} Nh5 {[%emt 0:04:30]} 12. Nb3 {[%emt 0:09:30]} Bb6 {[%emt 0:02:30]} 13. Be3 {[%emt 0:04:30]} Nf4 $14 {[%emt 0:04:30]} 14. Qd2 {[%emt 0:02:30]} Bxe3 {[%emt 0:04:30]} 15. Qxe3 {[%emt 0:00:30]} Nxd3 {[%emt 0:00:00]} 16. Qxd3 {[%emt 0:00:00]} dxe4 {[%emt 0:01:00]} 17. Qxe4 {[%emt 0:00:00]} e5 {[%emt 0:00:00]} 18. Rfe1 {[%emt 0:01:30]} Re8 {[%emt 0:03:00]} 19. Nbd4 {[%emt 0:06:30]} Bd7 {[%emt 0:04:30]} 20. Nf5 {[%emt 0:02:30]} Ne7 {[%emt 0:03:30]} 21. N3h4 {[%emt 0:10:30]} Nxf5 {[%emt 0:12:30]} 22. Nxf5 {[%emt 0:00:00]} g6 {[%emt 0:00:30]} 23. Ne3 {[%emt 0:06:00]} Kg7 {[%emt 0:06:30]} 24. Rad1 {[%emt 0:12:30]} Bc6 {[%emt 0:00:30]} 25. Qh4 {[%emt 0:00:30]} f5 {[%emt 0:02:30]} 26. Nc4 {[%emt 0:06:30]} e4 {[%emt 0:09:49]} 27. Rd6 {[%emt 0:02:30]} Qf7 {[%emt 0:00:18]} 28. Red1 {[%emt 0:03:06]} Re7 {[%emt 0:01:55]} 29. Ne3 {[%emt 0:06:24]} Rae8 {[%emt 0:01:31]} 30. g4 {[%emt 0:03:42]} fxg4 {[%emt 0:04:13]} 31. Nxg4 {[%emt 0:00:48]} Qf4 {[%emt 0:00:46]} 32. Rf6 {[%emt 0:01:07]} Qg5 {[%emt 0:00:10]} 33. Qxg5 {[%emt 0:00:39]} hxg5 {[%emt 0:00:30]} 34. Rdd6 {[%emt 0:00:30]} Rf7 {[%emt 0:00:30]} 35. Rxg6+ {[%emt 0:00:30]} Kf8 {[%emt 0:00:30]} 36. Rxg5 {[%emt 0:00:30]} Rf3 {[%emt 0:02:26]} 37. Rh6 {[%emt 0:03:29]} 1-0